bitfinex/quotes_BTCUSD_20250308
["timestamp","ask_amount","ask_price","bid_price","bid_amount"]
[1741462405887,0.011543,86626.0,86622.0,0.09356437]
[1741462406521,0.011544,86625.0,86622.0,0.09356437]
[1741462406720,0.011543,86626.0,86622.0,0.09356437]
[1741462406920,0.011543,86626.0,86622.0,0.08856437]
[1741462407138,0.011543,86626.0,86622.0,0.09156437]
[1741462407577,0.20920352,86635.0,86627.0,0.011543]
[1741462407684,0.01297852,86635.0,86631.0,0.0779]
[1741462407890,0.011542,86634.0,86632.0,0.00760449]
[1741462408101,0.011542,86633.0,86632.0,0.00760449]
[1741462408512,0.011542,86633.0,86631.0,0.0779]
[1741462409239,0.011542,86634.0,86631.0,0.0779]
[1741462409647,0.196227,86634.0,86632.0,0.00760449]
[1741462409899,0.011542,86633.0,86632.0,0.00760449]
[1741462411588,0.011542,86633.0,86632.0,0.00756449]
[1741462411787,0.011542,86633.0,86632.0,0.00856449]
[1741462412981,0.011542,86633.0,86632.0,0.001]
[1741462416334,0.011542,86633.0,86632.0,0.00138562]
[1741462417555,0.011542,86633.0,86632.0,0.00172562]
[1741462418069,0.011712,86633.0,86632.0,0.00172562]
[1741462418501,0.311712,86633.0,86632.0,0.00172562]
[1741462419347,0.196227,86634.0,86632.0,0.00172562]
[1741462419695,0.011542,86633.0,86632.0,0.00172562]
[1741462420287,0.011542,86633.0,86632.0,0.00072562]
[1741462421785,0.196229,86633.0,86632.0,0.08172562]
[1741462422346,0.196229,86633.0,86632.0,0.0893072]
[1741462423964,0.02010159,86638.0,86632.0,0.0893072]
[1741462423965,0.011541,86647.0,86640.0,0.08]
[1741462424335,0.0001699,86653.0,86650.0,0.184649]
[1741462424538,0.0001699,86653.0,86652.0,0.09154]
[1741462424925,0.0001699,86653.0,86652.0,0.0990466]
[1741462425395,0.0001699,86653.0,86652.0,0.1475466]
[1741462426024,0.0011699,86653.0,86652.0,0.1475466]
[1741462426257,0.0001699,86653.0,86652.0,0.1455466]
[1741462427689,0.0001699,86653.0,86652.0,0.1475466]
[1741462428077,0.0001699,86653.0,86652.0,0.1455466]
[1741462428529,0.0001699,86653.0,86652.0,0.1370066]
[1741462428708,0.0117099,86653.0,86652.0,0.1370066]
[1741462428916,0.0001699,86653.0,86652.0,0.1370066]
[1741462429494,0.0001699,86653.0,86652.0,0.1390066]
[1741462429695,0.0001699,86653.0,86652.0,0.1505466]
[1741462430107,0.0001699,86653.0,86652.0,0.1535466]
[1741462431931,0.0001699,86653.0,86652.0,0.1420066]
[1741462432673,0.0001699,86653.0,86652.0,0.1535466]
[1741462432870,0.0001699,86653.0,86652.0,0.1420066]
[1741462433080,0.0117099,86653.0,86652.0,0.0925066]
[1741462433482,0.0117099,86653.0,86652.0,0.0125066]
[1741462433677,0.0117099,86653.0,86652.0,0.005]
[1741462436690,1.3423139,86653.0,86652.0,0.005]
[1741462436867,1.0286349,86653.0,86652.0,0.005]
[1741462437075,0.9370349,86653.0,86652.0,0.005]
[1741462437508,0.8124099,86653.0,86652.0,0.002]
[1741462437828,0.196226,86634.0,86633.0,0.08]
[1741462438180,0.011542,86634.0,86633.0,0.08751721]
[1741462439095,0.011542,86637.0,86633.0,0.09351721]
[1741462439497,0.196222,86636.0,86633.0,0.10051721]
[1741462439723,0.011542,86635.0,86633.0,0.10051721]
[1741462439896,0.011542,86636.0,86633.0,0.10051721]
[1741462440098,0.011542,86639.0,86634.0,0.011542]
[1741462440365,0.196215,86640.0,86634.0,0.011542]
[1741462440544,0.196215,86640.0,86635.0,0.00751072]
[1741462440747,0.196219,86638.0,86635.0,0.00751072]
[1741462440952,0.196219,86638.0,86633.0,0.08]
[1741462441291,0.011542,86637.0,86633.0,0.0853398]
[1741462441472,0.011542,86638.0,86634.0,0.00751396]
[1741462441696,0.196215,86640.0,86634.0,0.20373896]
[1741462441896,0.011542,86639.0,86633.0,0.0988818]
[1741462442043,0.196215,86640.0,86635.0,0.00751072]
[1741462442239,0.196215,86640.0,86634.0,0.196226]
[1741462442240,0.196215,86640.0,86634.0,0.20376471]
[1741462442442,0.011542,86639.0,86636.0,0.00753221]
[1741462442657,0.18468,86636.0,86635.0,0.01253546]
[1741462442876,0.011542,86634.0,86633.0,0.0863398]
[1741462443053,0.011542,86634.0,86633.0,0.0063398]
[1741462443481,0.011542,86634.0,86633.0,0.0003398]
[1741462444176,0.00856557,86641.0,86637.0,0.094342]
[1741462444377,0.00856557,86641.0,86637.0,0.0828]
[1741462444378,0.196211,86641.0,86637.0,0.0828]
[1741462444725,0.196218,86638.0,86637.0,0.0828]
[1741462444932,0.011542,86639.0,86637.0,0.0828]
[1741462445185,0.184676,86638.0,86637.0,0.0828]
[1741462445741,0.196226,86634.0,86633.0,0.0043398]
[1741462446335,0.18468,86636.0,86633.0,0.0043398]
[1741462446546,0.18468,86636.0,86633.0,0.0003398]
[1741462447390,0.184684,86634.0,86633.0,0.0003398]
[1741462447780,0.184684,86634.0,86633.0,0.0023398]
[1741462448001,0.196226,86634.0,86633.0,0.0023398]
[1741462448206,0.196226,86634.0,86633.0,0.0003398]
[1741462448654,0.196226,86634.0,86633.0,0.0023398]
[1741462448859,0.196226,86634.0,86633.0,0.0033398]
[1741462449295,0.2198513,86634.0,86633.0,0.0023398]
[1741462449506,0.2198513,86634.0,86633.0,0.0033398]
[1741462449894,0.2198513,86634.0,86633.0,0.0013398]
[1741462450044,0.2198513,86634.0,86633.0,0.0023398]
[1741462450906,0.2198513,86634.0,86633.0,0.0013398]
[1741462459103,0.196226,86634.0,86633.0,0.0013398]
[1741462464027,0.196226,86634.0,86633.0,0.0794398]
[1741462468259,0.18468,86636.0,86633.0,0.0794398]
[1741462468462,0.011542,86635.0,86634.0,0.0476]
[1741462468866,0.011542,86635.0,86634.0,0.05515992]
[1741462470009,0.0001699,86638.0,86636.0,0.184679]
[1741462470208,0.0001699,86638.0,86637.0,0.09718526]
[1741462470420,0.0001699,86638.0,86637.0,0.0975916]
[1741462470837,0.0001699,86638.0,86637.0,0.1463457]
[1741462471258,0.0001699,86638.0,86637.0,0.1451916]
[1741462471604,0.0001699,86638.0,86637.0,0.1463457]
[1741462471778,0.0001699,86638.0,86637.0,0.1513457]
[1741462472010,0.0001699,86638.0,86637.0,0.1573457]
[1741462472236,0.0001699,86664.0,86652.0,0.321886]
[1741462472438,0.0001699,86664.0,86652.0,0.439046]
[1741462472657,0.0001699,86664.0,86652.0,0.44650616]
[1741462474897,0.0001699,86664.0,86652.0,0.45250616]
[1741462475290,0.0001699,86664.0,86652.0,0.45650616]
[1741462477083,0.184628,86661.0,86652.0,0.45730616]
[1741462477291,0.196167,86661.0,86652.0,0.45730616]
[1741462477556,0.196167,86661.0,86652.0,0.26116016]
[1741462477557,0.184637,86657.0,86652.0,0.26116016]
[1741462477780,0.011539,86660.0,86652.0,0.26116016]
[1741462477989,0.184636,86657.0,86652.0,0.26116016]
[1741462478112,0.011539,86661.0,86653.0,0.196184]
[1741462478318,0.18065265,86662.0,86657.0,0.011539]
[1741462478523,0.184631,86660.0,86654.0,0.00745367]
[1741462478734,0.011539,86659.0,86658.0,0.00744069]
[1741462478975,0.196172,86658.0,86652.0,0.2437]
[1741462479232,0.19618,86655.0,86653.0,0.002]
[1741462479427,0.19618,86655.0,86653.0,0.004]
[1741462479693,0.01154,86655.0,86653.0,0.002]
[1741462479914,0.00011555,86655.0,86653.0,0.002]
[1741462480673,0.00011555,86655.0,86652.0,0.1257]
[1741462481553,0.01165555,86655.0,86652.0,0.1257]
[1741462481803,0.01165555,86655.0,86652.0,0.1307]
[1741462482044,0.19629555,86655.0,86652.0,0.0831]
[1741462482287,0.01154,86653.0,86652.0,0.0831]
[1741462483204,0.01154,86653.0,86652.0,0.0871]
[1741462483434,0.01154,86653.0,86652.0,0.0831]
[1741462483639,0.01154,86653.0,86652.0,0.0781]
[1741462484004,0.01154,86653.0,86652.0,0.0881]
[1741462484267,0.01165555,86655.0,86652.0,0.0881]
[1741462484410,0.196182,86654.0,86652.0,0.0881]
[1741462484619,0.01154,86653.0,86652.0,0.0881]
[1741462485053,0.01154,86653.0,86652.0,0.0821]
[1741462485675,0.01154,86653.0,86652.0,0.0831]
[1741462486169,0.01154,86653.0,86652.0,0.0871]
[1741462486360,0.01154,86653.0,86652.0,0.0831]
[1741462486901,0.01154,86653.0,86652.0,0.0821]
[1741462487116,0.01154,86653.0,86652.0,0.0881]
[1741462488006,0.01154,86653.0,86652.0,0.09552949]
[1741462489814,0.196182,86654.0,86652.0,0.09152949]
[1741462489815,0.01154,86654.0,86652.0,0.09152949]
[1741462489928,0.01154,86654.0,86652.0,0.08852949]
[1741462490134,0.00011555,86655.0,86652.0,0.27417449]
[1741462490333,0.00011555,86655.0,86652.0,0.08986909]
[1741462490557,0.00011555,86655.0,86652.0,0.09286909]
[1741462491185,0.19629655,86655.0,86652.0,0.09286909]
[1741462491528,0.01165555,86655.0,86652.0,0.08886909]
[1741462491723,0.00011555,86655.0,86654.0,0.01154]
[1741462491862,0.00011555,86655.0,86653.0,0.00742624]
[1741462492063,0.00011555,86655.0,86654.0,0.203605]
[1741462492266,0.00011555,86655.0,86654.0,0.018963]
[1741462492526,0.00011555,86655.0,86654.0,0.007423]
[1741462492952,0.00011555,86655.0,86654.0,0.018963]
[1741462493366,0.00011555,86655.0,86654.0,0.097763]
[1741462493576,0.01165555,86655.0,86654.0,0.088223]
[1741462493777,0.01165555,86655.0,86654.0,0.009423]
[1741462494176,0.01165555,86655.0,86654.0,0.002]
[1741462494378,0.01165555,86655.0,86654.0,0.009423]
[1741462494613,0.00665555,86655.0,86654.0,0.012423]
[1741462500383,0.00665555,86655.0,86654.0,0.005]
[1741462501144,0.63365555,86655.0,86654.0,0.005]
[1741462501348,1.38028055,86655.0,86654.0,0.005]
[1741462501765,1.38028055,86655.0,86652.0,0.0003396]
[1741462501766,0.03654,86653.0,86652.0,0.0003396]
[1741462502107,1.69143785,86653.0,86652.0,0.0003396]
[1741462502259,1.41668585,86653.0,86652.0,0.0003396]
[1741462502463,0.66909785,86653.0,86652.0,0.0003396]
[1741462503483,0.59850785,86653.0,86652.0,0.0003396]
[1741462503678,0.6216627,86653.0,86652.0,0.0003396]
[1741462504799,1.1090197,86653.0,86652.0,0.0003396]
[1741462505553,1.0818407,86653.0,86652.0,0.0003396]
[1741462505743,1.09438823,86653.0,86652.0,0.0003396]
[1741462505972,1.43011125,86653.0,86652.0,0.0003396]
[1741462507485,1.43011125,86653.0,86652.0,6e-07]
[1741462507685,0.92130625,86653.0,86652.0,6e-07]
[1741462508072,0.99085625,86653.0,86652.0,6e-07]
[1741462508486,0.196218,86638.0,86633.0,0.0003398]
[1741462508686,0.496252,86623.0,86622.0,6.971e-05]
[1741462508898,2.311818,86623.0,86622.0,1e-08]
[1741462509038,0.965532,86623.0,86622.0,1e-08]
[1741462509439,0.98007285,86623.0,86622.0,1e-08]
[1741462509884,0.98007285,86623.0,86622.0,0.00200001]
[1741462510099,0.98007285,86623.0,86622.0,0.00338563]
[1741462510515,1.45473785,86623.0,86622.0,0.00338563]
[1741462511039,1.47842315,86623.0,86622.0,0.00338563]
[1741462511479,1.00375815,86623.0,86622.0,0.00338563]
[1741462511718,1.51780715,86623.0,86622.0,0.00338563]
[1741462512415,1.21926115,86623.0,86622.0,0.00338563]
[1741462513048,1.21926115,86623.0,86622.0,0.00138563]
[1741462513049,1.22812402,86623.0,86622.0,0.00138563]
[1741462513506,1.22812402,86623.0,86622.0,0.00038563]
[1741462513914,1.22812402,86623.0,86622.0,0.00238563]
[1741462514387,1.22812402,86623.0,86622.0,0.00372543]
[1741462515416,1.22812402,86623.0,86622.0,0.00172543]
[1741462515645,1.31352402,86623.0,86622.0,4.3e-07]
[1741462515816,1.09802102,86623.0,86622.0,4.3e-07]
[1741462516432,1.09602102,86623.0,86622.0,4.3e-07]
[1741462516627,1.10102102,86623.0,86622.0,0.00100043]
[1741462516828,1.10602102,86623.0,86622.0,0.00100043]
[1741462517053,1.10602102,86623.0,86622.0,4.3e-07]
[1741462517054,1.10102102,86623.0,86622.0,4.3e-07]
[1741462518273,2.62052102,86623.0,86622.0,4.3e-07]
[1741462518646,2.62552102,86623.0,86622.0,4.3e-07]
[1741462519497,2.62052102,86623.0,86622.0,4.3e-07]
[1741462521688,2.43898099,86623.0,86622.0,4.3e-07]
[1741462521915,2.51333299,86623.0,86622.0,4.3e-07]
[1741462522492,0.221258,86620.0,86619.0,0.0003396]
[1741462522691,2.51434385,86620.0,86619.0,0.00045515]
[1741462522930,2.21829685,86620.0,86619.0,0.00045515]
[1741462523498,1.90118185,86620.0,86619.0,0.00045515]
[1741462523794,0.86279885,86620.0,86619.0,1.5e-07]
[1741462523993,3.49679885,86620.0,86619.0,1.5e-07]
[1741462530032,3.87629885,86620.0,86619.0,1.5e-07]
[1741462530239,0.1963,86602.0,86601.0,0.0783]
[1741462530454,0.011548,86595.0,86594.0,0.07243882]
[1741462530662,0.196316,86595.0,86594.0,0.07243882]
[1741462532155,0.184755,86601.0,86589.0,0.04771564]
[1741462532156,3.0135,86602.0,86595.0,0.0463]
[1741462532409,0.196291,86606.0,86601.0,0.0463]
[1741462532616,0.011547,86602.0,86601.0,0.0463]
[1741462533215,0.011546,86609.0,86601.0,0.0463]
[1741462533414,0.02009754,86609.0,86603.0,0.0786]
[1741462533860,0.18474,86608.0,86605.0,0.0786]
[1741462534064,0.196286,86608.0,86605.0,0.0786]
[1741462534281,0.184723,86616.0,86611.0,0.0786]
[1741462534494,0.196266,86617.0,86611.0,0.0786]
[1741462534693,0.196272,86614.0,86611.0,0.0786]
[1741462534895,0.196272,86614.0,86613.0,0.0786]
[1741462535275,0.196272,86614.0,86613.0,0.08575354]
[1741462536187,0.184723,86616.0,86613.0,0.08575354]
[1741462536960,0.011545,86615.0,86613.0,0.08575354]
[1741462537359,0.02027809,86620.0,86613.0,0.08575354]
[1741462537360,0.0001699,86623.0,86621.0,0.011544]
[1741462537576,0.0001699,86623.0,86622.0,0.0825]
[1741462537746,0.0001699,86623.0,86622.0,0.08964053]
[1741462537952,0.0001699,86623.0,86622.0,0.14958453]
[1741462539763,0.0001699,86623.0,86622.0,0.15073877]
[1741462540046,0.0001699,86623.0,86622.0,0.14958453]
[1741462540843,0.0001699,86623.0,86622.0,0.15241391]
[1741462541904,0.0001699,86623.0,86622.0,0.14086991]
[1741462542095,0.0001699,86623.0,86622.0,0.15241391]
[1741462544852,0.0001699,86623.0,86622.0,0.14086991]
[1741462545834,0.02455781,86623.0,86622.0,0.14086991]
[1741462547364,0.02455781,86623.0,86622.0,0.1309]
[1741462547771,0.02455781,86623.0,86622.0,0.13918341]
[1741462548010,0.02455781,86623.0,86622.0,0.09078341]
[1741462548234,0.02455781,86623.0,86622.0,0.00828341]
[1741462548538,0.196263,86618.0,86617.0,0.076]
[1741462548740,0.196263,86618.0,86617.0,0.07611564]
[1741462548932,0.196263,86618.0,86617.0,0.08440748]
[1741462549571,0.0001699,86623.0,86622.0,0.011544]
[1741462549781,0.0001699,86623.0,86622.0,0.1369983]
[1741462549982,0.0001699,86623.0,86622.0,0.14694667]
[1741462550182,0.0001699,86623.0,86622.0,0.14579237]
[1741462555044,0.0001699,86623.0,86622.0,0.14694663]
[1741462555263,0.0001699,86623.0,86622.0,0.44579237]
[1741462556194,0.01828001,86623.0,86622.0,0.44579237]
[1741462556669,0.184667,86642.0,86633.0,0.011542]
[1741462556825,0.184675,86639.0,86633.0,0.011542]
[1741462557223,0.184675,86639.0,86634.0,0.0099241]
[1741462557426,0.01810983,86638.0,86634.0,0.0099241]
[1741462557671,0.01810983,86638.0,86633.0,0.011542]
[1741462557883,0.19622,86637.0,86635.0,0.00992207]
[1741462558189,0.01810983,86638.0,86636.0,0.00992005]
[1741462558411,0.01810983,86638.0,86637.0,0.0825]
[1741462558814,0.01810983,86638.0,86637.0,0.09241803]
[1741462559192,0.01810983,86638.0,86637.0,0.00991803]
[1741462559577,0.01810983,86638.0,86632.0,0.0825]
[1741462559783,0.01810983,86638.0,86637.0,0.00991803]
[1741462560005,0.01810983,86638.0,86632.0,0.0825]
[1741462560159,0.02965183,86638.0,86637.0,0.00990696]
[1741462560365,0.011542,86633.0,86632.0,0.0825]
[1741462560608,0.011544,86621.0,86618.0,0.0771]
[1741462560855,0.19626,86619.0,86618.0,0.0771]
[1741462561401,0.21437302,86619.0,86617.0,0.00045544]
[1741462561603,0.011544,86618.0,86617.0,0.00045544]
[1741462562587,0.01811302,86619.0,86618.0,0.011544]
[1741462563111,0.01811302,86619.0,86618.0,0.02149049]
[1741462563339,0.01811302,86619.0,86618.0,0.21439049]
[1741462564308,0.19704538,86641.0,86618.0,0.21439049]
[1741462564309,0.127341,86643.0,86635.0,0.0771]
[1741462564509,0.127341,86643.0,86635.0,0.261782]
[1741462564726,0.184664,86644.0,86636.0,0.00991007]
[1741462564911,0.196205,86644.0,86636.0,0.00991007]
[1741462565134,0.011542,86640.0,86636.0,0.00991007]
[1741462565333,0.184674,86639.0,86636.0,0.00991007]
[1741462565533,0.011542,86638.0,86635.0,0.0771]
[1741462565873,0.011542,86638.0,86636.0,0.00991289]
[1741462566074,0.011542,86638.0,86635.0,0.0771]
[1741462566316,0.011542,86640.0,86636.0,0.00991289]
[1741462566741,0.196216,86639.0,86636.0,0.00991289]
[1741462566911,0.184678,86637.0,86635.0,0.0771]
[1741462567292,0.184678,86637.0,86636.0,0.00991289]
[1741462567476,0.184678,86637.0,86635.0,0.0771]
[1741462567685,0.01811069,86639.0,86636.0,0.00991289]
[1741462568326,0.01811069,86639.0,86637.0,0.184678]
[1741462568536,0.01811069,86639.0,86638.0,0.011542]
[1741462568695,0.01811069,86639.0,86638.0,0.02145084]
[1741462569154,0.01811069,86639.0,86638.0,0.00990884]
[1741462569383,0.01811069,86639.0,86635.0,0.088642]
[1741462569590,0.01811069,86639.0,86638.0,0.00989503]
[1741462569794,0.02965269,86639.0,86638.0,0.00989503]
[1741462569995,0.184693,86630.0,86629.0,0.11572]
[1741462570215,0.196229,86633.0,86629.0,0.11572]
[1741462570424,0.011542,86633.0,86629.0,0.11572]
[1741462570659,0.011543,86630.0,86629.0,0.11572]
[1741462570786,0.01811125,86633.0,86629.0,0.11572]
[1741462572164,0.01811125,86633.0,86632.0,0.011543]
[1741462572570,0.01811125,86633.0,86630.0,0.196235]
[1741462573329,0.01811125,86633.0,86632.0,0.011543]
[1741462576221,0.01811125,86633.0,86632.0,0.091643]
[1741462576420,0.01811125,86633.0,86632.0,0.09279714]
[1741462576649,0.0001699,86642.0,86641.0,0.321411]
[1741462576899,0.0001699,86642.0,86641.0,0.437251]
[1741462578301,0.0001699,86642.0,86641.0,0.4456742]
[1741462579136,0.0001699,86642.0,86641.0,0.4005742]
[1741462579377,0.0001699,86642.0,86641.0,0.2043632]
[1741462579559,0.01827802,86642.0,86641.0,0.2043632]
[1741462580133,0.02981902,86642.0,86641.0,0.2043632]
[1741462580340,0.02981902,86642.0,86641.0,0.1242632]
[1741462580525,0.02981902,86642.0,86641.0,0.11584]
[1741462580731,0.02981902,86642.0,86641.0,0.12594567]
[1741462580916,0.01827802,86642.0,86641.0,0.12594567]
[1741462581107,0.01827802,86642.0,86641.0,0.13748667]
[1741462581406,0.01827802,86642.0,86641.0,0.32215667]
[1741462581890,0.01827802,86642.0,86641.0,0.12594567]
[1741462582225,0.01827802,86642.0,86641.0,0.13748667]
[1741462586302,0.20294502,86642.0,86641.0,0.12594567]
[1741462586489,0.02981902,86642.0,86641.0,0.12594567]
[1741462586681,0.02981902,86642.0,86641.0,0.12650567]
[1741462586886,0.01827802,86642.0,86641.0,0.12650567]
[1741462587110,0.01827802,86642.0,86641.0,0.13804667]
[1741462589378,0.01827802,86642.0,86641.0,0.13920067]
[1741462590104,0.01827802,86642.0,86641.0,0.22000067]
[1741462590303,0.01827802,86642.0,86641.0,0.22040701]
[1741462590463,0.0001699,86642.0,86641.0,0.22000067]
[1741462591042,0.0001699,86642.0,86641.0,0.52000067]
[1741462591251,0.0001699,86642.0,86641.0,0.51884667]
[1741462592064,9e-07,86642.0,86641.0,0.59534139]
[1741462592238,9e-07,86642.0,86641.0,1.13814693]
[1741462592438,0.0001698,86662.0,86653.0,0.623084]
[1741462592644,0.0001698,86662.0,86653.0,0.739164]
[1741462592971,9e-07,86654.0,86653.0,0.76376256]
[1741462593285,0.01810412,86654.0,86653.0,0.76376256]
[1741462593750,0.0001698,86662.0,86653.0,0.76376256]
[1741462593751,0.0001698,86662.0,86661.0,0.623066]
[1741462593899,0.0001698,86662.0,86661.0,0.63760685]
[1741462593900,0.00055518,86662.0,86661.0,0.63760685]
[1741462594095,0.00055518,86662.0,86661.0,0.64763324]
[1741462594296,0.01865641,86662.0,86661.0,0.64759324]
[1741462594632,1.8e-07,86662.0,86661.0,0.64759324]
[1741462594888,9e-07,86673.0,86672.0,0.025]
[1741462595157,9e-07,86673.0,86672.0,1.18383041]
[1741462595403,0.00011643,86673.0,86672.0,1.29457554]
[1741462596329,7e-05,86697.0,86678.0,0.63176785]
[1741462597052,7e-05,86697.0,86678.0,0.62720522]
[1741462597744,0.01849717,86679.0,86678.0,0.62720522]
[1741462599403,0.01849717,86679.0,86678.0,0.64174607]
[1741462601200,0.01866707,86679.0,86678.0,0.64174607]
[1741462602159,0.01866707,86679.0,86678.0,0.66674607]
[1741462602946,0.01866707,86679.0,86678.0,0.67907214]
[1741462603207,7e-08,86679.0,86678.0,1.24687768]
[1741462603460,7e-05,86697.0,86688.0,0.573504]
[1741462603700,7e-05,86697.0,86688.0,0.69900485]
[1741462603929,7e-05,86697.0,86688.0,0.75640848]
[1741462604672,7e-05,86697.0,86688.0,0.62590763]
[1741462604871,7e-05,86697.0,86688.0,0.74242763]
[1741462605071,7e-05,86697.0,86688.0,0.62590763]
[1741462605279,7e-05,86697.0,86688.0,0.74250763]
[1741462605861,0.184485,86728.0,86706.0,0.196063]
[1741462606068,0.184485,86728.0,86707.0,0.11783312]
[1741462606364,0.011531,86717.0,86710.0,0.011532]
[1741462606511,0.02962536,86721.0,86712.0,0.011532]
[1741462606711,0.011531,86720.0,86713.0,0.00985069]
[1741462606917,0.01809436,86721.0,86720.0,0.011531]
[1741462607141,0.01809436,86721.0,86720.0,0.00983655]
[1741462607358,0.01809436,86721.0,86720.0,0.011531]
[1741462607561,0.01253,86729.0,86721.0,0.0774]
[1741462607562,0.001,86729.0,86721.0,0.0774]
[1741462607761,0.001,86729.0,86728.0,0.61295485]
[1741462607962,0.001,86729.0,86728.0,1.14017376]
[1741462608187,0.0247247,86758.0,86728.0,1.14017376]
[1741462608188,0.0131987,86758.0,86738.0,0.388928]
[1741462608403,0.011526,86757.0,86738.0,0.51566896]
[1741462608731,0.011527,86747.0,86738.0,0.50414096]
[1741462608935,0.01848616,86739.0,86738.0,0.08718096]
[1741462609115,0.01848616,86739.0,86738.0,0.21602896]
[1741462609363,0.01848616,86739.0,86738.0,0.12710096]
[1741462609802,0.01848616,86739.0,86738.0,0.13862896]
[1741462610008,0.01848616,86739.0,86738.0,0.43978175]
[1741462610208,0.01848616,86739.0,86738.0,0.45316981]
[1741462610617,0.01848616,86739.0,86738.0,0.53056981]
[1741462610822,0.01848616,86739.0,86738.0,0.51602896]
[1741462611023,0.01848616,86739.0,86738.0,0.21602896]
[1741462612646,0.01865586,86739.0,86738.0,0.21602896]
[1741462613814,0.0005697,86739.0,86738.0,0.13862896]
[1741462614754,0.0005697,86739.0,86738.0,0.00978096]
[1741462614973,0.0005697,86739.0,86738.0,0.14410896]
[1741462615585,0.0005697,86739.0,86738.0,0.00978096]
[1741462615786,0.1850307,86739.0,86738.0,0.00978096]
[1741462615994,0.011529,86734.0,86729.0,0.12268]
[1741462616193,0.011529,86731.0,86724.0,0.13417]
[1741462616411,0.011529,86731.0,86725.0,0.01153]
[1741462616563,0.011529,86731.0,86726.0,0.01166847]
[1741462616753,0.01808929,86730.0,86726.0,0.01166847]
[1741462617785,0.01808929,86730.0,86727.0,0.01153]
[1741462618011,0.01808929,86730.0,86728.0,0.01166914]
[1741462618209,0.01808929,86730.0,86726.0,0.01153]
[1741462618414,0.01808929,86730.0,86729.0,0.01153]
[1741462618588,0.01808929,86730.0,86729.0,0.02320363]
[1741462621877,0.01808929,86730.0,86729.0,0.02435645]
[1741462622045,0.0005697,86739.0,86738.0,0.195991]
[1741462622255,0.0005697,86739.0,86738.0,0.40510193]
[1741462623093,0.0005697,86739.0,86738.0,0.45450193]
[1741462624075,0.0005697,86739.0,86738.0,0.40510193]
[1741462625174,0.0005697,86739.0,86738.0,1.40510193]
[1741462626246,0.01865545,86739.0,86738.0,1.40510193]
[1741462629557,0.01865545,86739.0,86738.0,2.26204198]
[1741462633376,0.0131987,86758.0,86748.0,0.545369]
[1741462633603,0.0131987,86758.0,86748.0,1.32544905]
[1741462633816,0.0131987,86758.0,86748.0,1.33700792]
[1741462634266,0.0131987,86758.0,86748.0,1.37204098]
[1741462634714,0.0131987,86758.0,86748.0,1.37243492]
[1741462635345,0.0131987,86758.0,86748.0,1.38821419]
[1741462636738,0.01908229,86749.0,86748.0,1.38821419]
[1741462637729,0.01925219,86749.0,86748.0,1.38821419]
[1741462638107,0.0004,86779.0,86748.0,1.38821419]
[1741462638108,0.16489275,86785.0,86776.0,0.011523]
[1741462638311,0.16489275,86785.0,86777.0,0.12512]
[1741462638627,0.011523,86781.0,86778.0,0.01160598]
[1741462638830,0.195896,86781.0,86778.0,0.01160598]
[1741462639164,0.011524,86772.0,86771.0,0.12496]
[1741462639369,0.011524,86772.0,86762.0,0.195936]
[1741462639370,0.0579,86780.0,86775.0,0.011524]
[1741462639576,0.184365,86785.0,86775.0,0.011524]
[1741462639783,0.195905,86777.0,86776.0,0.01161102]
[1741462639983,0.011524,86774.0,86770.0,0.125]
[1741462641006,0.011524,86773.0,86770.0,0.125]
[1741462641389,0.195913,86773.0,86770.0,0.125]
[1741462641593,0.195913,86773.0,86759.0,0.184418]
[1741462641594,0.011525,86765.0,86755.0,0.011526]
[1741462641792,0.011525,86764.0,86756.0,0.12484]
[1741462641994,0.195933,86764.0,86756.0,0.136366]
[1741462642390,0.195933,86764.0,86756.0,0.32079]
[1741462642641,0.011525,86762.0,86757.0,0.011526]
[1741462642822,0.011525,86762.0,86752.0,0.011527]
[1741462642823,0.011526,86753.0,86745.0,0.184446]
[1741462643017,0.195954,86755.0,86751.0,0.12472]
[1741462643220,0.195954,86755.0,86749.0,0.011527]
[1741462643425,0.011526,86757.0,86750.0,0.01192094]
[1741462643769,0.011526,86757.0,86750.0,0.19635794]
[1741462643879,0.011526,86757.0,86751.0,0.011527]
[1741462644383,0.195951,86757.0,86751.0,0.011527]
[1741462644593,0.011526,86756.0,86750.0,0.01192094]
[1741462644793,0.011526,86755.0,86750.0,0.00039394]
[1741462645846,0.195954,86755.0,86750.0,0.00039394]
[1741462646109,0.011527,86751.0,86750.0,0.00039394]
[1741462646307,0.069427,86751.0,86750.0,0.00039394]
[1741462650489,0.0695969,86751.0,86750.0,0.00039394]
[1741462650844,0.09281815,86751.0,86750.0,0.00039394]
[1741462653125,0.19129288,86754.0,86750.0,0.00039394]
[1741462653329,0.011527,86751.0,86750.0,0.00039394]
[1741462653539,0.02961549,86751.0,86750.0,0.00039394]
[1741462653750,0.03419814,86751.0,86750.0,0.00039394]
[1741462655098,0.03419814,86751.0,86750.0,0.00035394]
[1741462656572,0.05228644,86751.0,86750.0,0.00035394]
[1741462660490,0.011527,86751.0,86750.0,0.00035394]
[1741462660715,0.02961625,86751.0,86750.0,0.00035394]
[1741462661171,0.3441571,86751.0,86750.0,9.4e-07]
[1741462661371,1.6217971,86751.0,86750.0,9.4e-07]
[1741462661579,0.51052985,86739.0,86738.0,0.97179176]
[1741462661785,2.28034385,86739.0,86738.0,0.97218485]
[1741462661931,2.00911085,86739.0,86738.0,0.98379499]
[1741462662111,1.51578285,86739.0,86738.0,0.97218485]
[1741462662327,1.12258073,86739.0,86738.0,0.97218485]
[1741462662752,1.12948985,86739.0,86738.0,0.98379499]
[1741462663009,0.96168985,86739.0,86738.0,0.98375499]
[1741462663216,0.96168985,86739.0,86738.0,0.98409459]
[1741462663217,1.09420385,86739.0,86738.0,0.98409459]
[1741462664412,0.96168985,86739.0,86738.0,0.98409459]
[1741462664628,1.15433585,86739.0,86738.0,0.98409459]
[1741462664887,1.09361,86739.0,86738.0,0.98409459]
[1741462665108,1.049649,86739.0,86738.0,0.98409459]
[1741462665379,0.925489,86739.0,86738.0,0.98409459]
[1741462665841,0.94358025,86739.0,86738.0,0.98409459]
[1741462666100,0.9581211,86739.0,86738.0,0.98409459]
[1741462667146,0.96695069,86739.0,86738.0,0.98409459]
[1741462672942,1.70639869,86739.0,86738.0,0.98409459]
[1741462673117,1.47338669,86739.0,86738.0,0.98409459]
[1741462673308,1.36595669,86739.0,86738.0,0.98409459]
[1741462674403,0.86462059,86739.0,86738.0,0.98409459]
[1741462674629,2.09143259,86739.0,86738.0,0.98409459]
[1741462674877,2.22830359,86739.0,86738.0,0.98409459]